bitfinex-derivatives/quotes_BNBF0:USTF0_20250609
["timestamp","ask_amount","ask_price","bid_price","bid_amount"]
[1749456067562,1.07428024,649.37,648.79,2.30140412]
[1749456067865,1.07428024,649.36,648.79,2.30140412]
[1749456068064,1.07428024,649.35,648.79,2.30140412]
[1749456068265,1.07428024,649.34,648.79,2.30140412]
[1749456068462,1.07428024,649.33,648.8,2.30140412]
[1749456068662,1.07428024,649.32,648.8,2.30140412]
[1749456068965,1.07428024,649.43,648.8,2.30140412]
[1749456069162,1.07428024,649.42,648.8,2.30140412]
[1749456069365,1.07428024,649.41,648.8,2.30140412]
[1749456069568,1.07428024,649.4,648.81,2.30140412]
[1749456069763,1.07428024,649.39,648.8,2.30140412]
[1749456069966,1.07428024,649.38,648.8,2.30140412]
[1749456070166,1.07428024,649.37,648.8,2.30140412]
[1749456070364,1.07428024,649.36,648.8,2.30140412]
[1749456070568,1.07428024,649.35,648.81,2.30140412]
[1749456070870,1.07428024,649.34,648.82,2.30140412]
[1749456071163,0.30795762,649.44,647.08,12.3028998]
[1749456071164,1.07428024,649.33,648.8,2.30140412]
[1749456071467,1.07428024,649.32,648.82,2.30140412]
[1749456071667,1.07428024,649.31,648.82,2.30140412]
[1749456071963,1.07428024,649.3,648.82,2.30140412]
[1749456072168,1.07428024,649.29,648.81,3.32340412]
[1749456072372,1.07428024,649.28,648.81,3.32340412]
[1749456072565,1.07428024,649.27,648.82,2.30140412]
[1749456072767,1.07428024,649.26,648.82,2.30140412]
[1749456072971,1.07428024,649.25,648.82,2.30140412]
[1749456073268,1.07428024,649.24,648.82,2.30140412]
[1749456073569,2.87634998,649.43,648.83,2.30140412]
[1749456073763,2.32055518,649.42,648.83,2.30140412]
[1749456073967,1.07428024,649.41,648.83,2.30140412]
[1749456074163,1.07428024,649.4,648.83,2.30140412]
[1749456074368,1.07428024,649.39,648.83,2.30140412]
[1749456074569,1.07428024,649.38,648.83,2.30140412]
[1749456074864,1.07428024,649.37,648.83,2.30140412]
[1749456075062,1.07428024,649.36,648.83,2.30140412]
[1749456075267,1.07428024,649.35,648.83,2.30140412]
[1749456075463,1.07428024,649.34,648.83,2.30140412]
[1749456075664,1.07428024,649.33,648.83,2.30140412]
[1749456075867,1.07428024,649.32,648.83,2.30140412]
[1749456076065,1.07428024,649.31,648.83,2.30140412]
[1749456076268,1.07428024,649.3,648.83,2.30140412]
[1749456076468,1.07428024,649.29,648.84,2.30140412]
[1749456076666,1.07428024,649.28,648.84,2.30140412]
[1749456076970,1.07428024,649.27,648.84,2.30140412]
[1749456077166,1.07428024,649.26,648.84,2.30140412]
[1749456077371,1.07428024,649.25,648.81,1.022]
[1749456077571,1.07428024,649.24,648.81,1.022]
[1749456077770,1.07428024,649.23,648.81,1.022]
[1749456077972,0.30795762,649.44,648.81,1.022]
[1749456078172,1.07421109,649.43,648.81,1.022]
[1749456078473,1.07421109,649.42,648.81,1.022]
[1749456078776,1.07421109,649.41,648.81,1.022]
[1749456078969,1.07421109,649.4,648.81,1.022]
[1749456079170,1.07421109,649.39,648.81,1.022]
[1749456079369,1.07421109,649.38,648.81,1.022]
[1749456079668,1.07421109,649.37,648.81,1.022]
[1749456079969,1.07421109,649.36,648.81,1.022]
[1749456080169,1.07421109,649.35,648.81,1.022]
[1749456080378,1.07421109,649.34,648.81,1.022]
[1749456080572,1.07421109,649.33,648.81,1.022]
[1749456080773,1.07421109,649.32,648.81,1.022]
[1749456081072,1.07421109,649.31,648.81,1.022]
[1749456081372,1.07421109,649.3,648.81,1.022]
[1749456081568,1.07421109,649.29,648.81,1.022]
[1749456081771,1.07421109,649.28,648.81,1.022]
[1749456082068,1.07421109,649.27,648.81,1.022]
[1749456082269,1.07421109,649.26,648.81,1.022]
[1749456082472,1.07421109,649.25,648.81,1.022]
[1749456082773,1.07421109,649.24,648.81,1.022]
[1749456083072,1.07421109,649.23,648.81,1.022]
[1749456083373,1.07418723,649.22,648.81,1.022]
[1749456083569,1.07418723,649.43,648.78,2.30140412]
[1749456083774,1.07418723,649.42,648.78,2.30140412]
[1749456083974,0.26814609,649.12,648.78,2.30140412]
[1749456084170,1.07418723,649.4,648.75,2.30140412]
[1749456084371,1.07418723,649.39,648.75,2.30140412]
[1749456084569,1.07418723,649.38,648.75,2.30140412]
[1749456084770,1.07418723,649.37,648.75,2.30140412]
[1749456084973,1.07418723,649.36,648.75,2.30140412]
[1749456085274,0.26813576,649.23,648.75,2.30140412]
[1749456085473,1.07418723,649.22,648.75,2.30140412]
[1749456085769,0.26813576,649.23,648.75,2.30140412]
[1749456085970,1.0742298,649.22,648.75,2.30140412]
[1749456086170,0.26813576,649.23,648.75,2.30140412]
[1749456086369,1.07422845,649.22,648.76,1.13]
[1749456086575,0.26813576,649.23,648.76,1.13]
[1749456086874,1.0742415,649.22,648.76,1.13]
[1749456087071,0.26813576,649.23,648.76,1.13]
[1749456087273,0.26813576,649.23,648.8,2.30140412]
[1749456087970,1.07425465,649.22,648.8,2.30140412]
[1749456088670,1.07425465,649.22,648.79,2.30140412]
[1749456089669,1.0743797,649.22,648.79,2.30140412]
[1749456090072,0.26813576,649.23,648.79,2.30140412]
[1749456090374,1.07437843,649.22,648.79,2.30140412]
[1749456090570,0.26813576,649.23,648.79,2.30140412]
[1749456090778,1.07439647,649.22,648.78,2.30140412]
[1749456090973,0.26813576,649.23,648.79,2.30140412]
[1749456091175,1.07519408,649.22,648.78,2.30140412]
[1749456091373,0.26813576,649.23,648.79,2.30140412]
[1749456091577,1.07521284,649.22,648.79,2.30140412]
[1749456091876,0.26813576,649.23,648.79,2.30140412]
[1749456092073,1.07521219,649.22,648.79,2.30140412]
[1749456092377,0.26813576,649.23,648.79,2.30140412]
[1749456092571,1.07521417,649.22,648.79,2.30140412]
[1749456092773,0.26813576,649.23,648.79,2.30140412]
[1749456092979,1.0752141,649.22,648.79,2.30140412]
[1749456093278,0.26813576,649.23,648.79,2.30140412]
[1749456093579,1.07521505,649.22,648.79,2.30140412]
[1749456093787,0.26813576,649.23,648.79,2.30140412]
[1749456094079,1.07523743,649.22,648.84,2.30140412]
[1749456094481,0.26813576,649.23,648.84,2.30140412]
[1749456094683,1.07401048,649.22,648.84,2.30140412]
[1749456095481,0.26813576,649.23,648.84,2.30140412]
[1749456095783,1.07516978,649.22,648.84,2.30140412]
[1749456095980,0.26813576,649.23,648.84,2.30140412]
[1749456096178,1.07517113,649.22,648.84,2.30140412]
[1749456096378,0.26813576,649.23,648.83,2.30140412]
[1749456096579,1.07520384,649.22,648.83,2.30140412]
[1749456096778,0.26813576,649.23,648.83,2.30140412]
[1749456096979,1.07520332,649.22,648.83,2.30140412]
[1749456097180,0.26813576,649.23,648.84,2.30140412]
[1749456097383,1.07520368,649.22,648.84,2.30140412]
[1749456097587,0.26813576,649.23,648.84,2.30140412]
[1749456097785,1.07524187,649.22,648.84,2.30140412]
[1749456097981,0.26813576,649.23,648.84,2.30140412]
[1749456098281,1.07524358,649.22,648.84,2.30140412]
[1749456098486,0.26813576,649.23,648.86,2.30140412]
[1749456098683,1.07527589,649.22,648.86,2.30140412]
[1749456098886,0.26813576,649.23,648.86,2.30140412]
[1749456099083,1.07527596,649.22,648.86,2.30140412]
[1749456099283,0.26813576,649.23,648.86,2.30140412]
[1749456099484,1.07529131,649.22,648.86,2.30140412]
[1749456099685,0.26813576,649.23,648.86,2.30140412]
[1749456099885,1.07528996,649.22,648.86,2.30140412]
[1749456100085,1.07528996,649.22,648.88,2.30140412]
[1749456100491,0.26813576,649.23,648.86,2.30140412]
[1749456100788,1.07547081,649.22,648.86,2.30140412]
[1749456100985,0.26813576,649.23,648.86,2.30140412]
[1749456101186,1.07547045,649.22,648.86,2.30140412]
[1749456101389,0.26813576,649.23,648.86,2.30140412]
[1749456101689,1.0754723,649.22,648.86,2.30140412]
[1749456101884,1.0754723,649.21,648.85,2.30140412]
[1749456102085,0.26813576,649.23,648.85,2.30140412]
[1749456102287,1.07548489,649.22,648.85,2.30140412]
[1749456102487,1.07548489,649.21,648.85,2.30140412]
[1749456102788,0.26813576,649.23,648.85,2.30140412]
[1749456102990,1.07548155,649.22,648.85,2.30140412]
[1749456103189,0.26813576,649.23,648.85,2.30140412]
[1749456103385,1.07548155,649.22,648.85,2.30140412]
[1749456103589,0.26813576,649.23,648.85,2.30140412]
[1749456103885,1.07548154,649.22,648.85,2.30140412]
[1749456104089,0.26813576,649.23,648.85,2.30140412]
[1749456104090,1.07548154,649.21,648.85,2.30140412]
[1749456104290,0.26813576,649.23,648.85,2.30140412]
[1749456104586,1.07548234,649.22,648.85,2.30140412]
[1749456104786,1.07548234,649.21,648.85,2.30140412]
[1749456104987,0.26813576,649.23,648.86,2.30140412]
[1749456105190,1.07548369,649.22,648.86,2.30140412]
[1749456105388,1.07548369,649.21,648.86,2.30140412]
[1749456105587,0.26813576,649.23,648.86,2.30140412]
[1749456105790,1.07548265,649.22,648.86,2.30140412]
[1749456105990,0.26813576,649.23,648.86,2.30140412]
[1749456106191,1.07548115,649.22,648.88,2.30140412]
[1749456106389,0.26813576,649.23,648.88,2.30140412]
[1749456106589,1.07548128,649.22,648.88,2.30140412]
[1749456106789,0.26813576,649.23,648.88,2.30140412]
[1749456106988,1.07548164,649.22,648.88,2.30140412]
[1749456107190,0.26813576,649.23,648.88,2.30140412]
[1749456107390,1.07548164,649.22,648.88,2.30140412]
[1749456107588,0.26813576,649.23,648.88,2.30140412]
[1749456107790,1.07548275,649.22,648.88,2.30140412]
[1749456107988,0.26813576,649.23,648.88,2.30140412]
[1749456108188,0.26813576,649.23,648.87,2.30140412]
[1749456108189,1.07548149,649.22,648.87,2.30140412]
[1749456108395,0.26813576,649.23,648.87,2.30140412]
[1749456108691,1.07548229,649.22,648.87,2.30140412]
[1749456108893,0.26813576,649.23,648.87,2.30140412]
[1749456109094,1.07548199,649.22,648.87,2.30140412]
[1749456109293,0.26813576,649.23,648.87,2.30140412]
[1749456109492,1.07548136,649.22,648.88,2.30140412]
[1749456109692,0.26813576,649.23,648.88,2.30140412]
[1749456109890,1.07548136,649.22,648.87,2.30140412]
[1749456110094,0.26813576,649.23,648.88,2.30140412]
[1749456110394,1.0754811,649.22,648.89,2.30140412]
[1749456110596,0.26813576,649.23,648.89,2.30140412]
[1749456110894,1.07548098,649.22,648.89,2.30140412]
[1749456111189,0.26813576,649.23,648.89,2.30140412]
[1749456111394,1.07548189,649.22,648.89,2.30140412]
[1749456111595,0.26813576,649.23,648.89,2.30140412]
[1749456111890,1.07548073,649.22,648.89,2.30140412]
[1749456112094,0.26813576,649.23,648.89,2.30140412]
[1749456112394,1.07548164,649.22,648.89,2.30140412]
[1749456112595,0.26813576,649.23,648.89,2.30140412]
[1749456112894,1.07548124,649.22,648.89,2.30140412]
[1749456113092,0.26813576,649.23,648.89,2.30140412]
[1749456113295,1.07547989,649.22,648.89,2.30140412]
[1749456113495,0.26813576,649.23,648.89,2.30140412]
[1749456113696,1.07548078,649.22,648.89,2.30140412]
[1749456113891,0.26813576,649.23,648.89,2.30140412]
[1749456114092,1.07548078,649.22,648.89,2.30140412]
[1749456114296,0.26813576,649.23,648.88,2.30140412]
[1749456114492,1.07548016,649.22,648.88,2.30140412]
[1749456114696,0.26813576,649.23,648.88,2.30140412]
[1749456114997,1.07547998,649.22,648.88,2.30140412]
[1749456115197,0.26813576,649.23,648.88,2.30140412]
[1749456115493,1.07548265,649.22,648.88,2.30140412]
[1749456115697,0.26813576,649.23,648.88,2.30140412]
[1749456115895,1.07548093,649.22,648.88,2.30140412]
[1749456116092,0.26813576,649.23,648.89,2.30140412]
[1749456116393,1.07548093,649.22,648.88,2.30140412]
[1749456116698,0.26813576,649.23,648.88,2.30140412]
[1749456116998,1.07548451,649.22,648.88,2.30140412]
[1749456117198,0.26813576,649.23,648.87,3.36340412]
[1749456117394,1.07548316,649.22,648.87,1.062]
[1749456117698,0.26813576,649.23,648.87,1.062]
[1749456117898,1.0754833,649.22,648.87,1.062]
[1749456118193,0.26813576,649.23,648.87,3.36340412]
[1749456118397,1.0754842,649.22,648.87,1.062]
[1749456118693,0.26813576,649.23,648.87,3.36340412]
[1749456118898,1.07548073,649.22,648.87,3.36340412]
[1749456119095,0.26813576,649.23,648.87,3.36340412]
[1749456119398,1.0754992,649.22,648.87,3.36340412]
[1749456119596,0.26813576,649.23,648.87,3.36340412]
[1749456119901,1.07549604,649.22,648.87,3.36340412]
[1749456120098,0.26813576,649.23,648.87,3.36340412]
[1749456120295,1.07549604,649.22,648.87,3.36340412]
[1749456120599,0.26813576,649.23,648.87,1.062]
[1749456120994,0.26813576,649.23,648.91,2.30140412]
[1749456121194,0.26813576,649.23,648.96,2.30140412]
[1749456121398,0.26813576,649.23,649.05,2.30140412]
[1749456121697,0.26813576,649.23,649.1,2.30140412]
[1749456121900,1.07518045,649.55,649.1,2.30140412]
[1749456122199,0.26802837,649.33,649.1,2.30140412]
[1749456122695,0.26802837,649.33,649.16,2.30140412]
[1749456123794,0.26802837,649.33,649.13,2.30140412]
[1749456124200,0.26802837,649.33,649.0,2.30140412]
[1749456124397,0.26802837,649.33,648.99,2.30140412]
[1749456124600,0.26802837,649.33,648.87,1.062]
[1749456124601,0.26802837,649.33,648.98,2.30140412]
[1749456125296,0.26802837,649.33,648.97,2.30140412]
[1749456125699,0.26802837,649.33,648.96,2.30140412]
[1749456125896,0.26802837,649.33,648.94,2.30140412]
[1749456126096,0.26802837,649.33,648.87,1.062]
[1749456126097,0.26802837,649.33,648.95,2.30140412]
[1749456126497,0.26802837,649.33,648.94,2.30140412]
[1749456126798,0.26802837,649.33,648.93,2.30140412]
[1749456127202,0.26802837,649.33,648.94,2.30140412]
[1749456127702,0.26802837,649.33,648.9,2.30140412]
[1749456128604,1.03394968,649.89,648.9,2.30140412]
[1749456128804,2.82409288,650.01,648.89,2.30140412]
[1749456129102,0.26803147,649.42,648.89,2.30140412]
[1749456129497,0.26803147,649.42,648.87,1.062]
[1749456137309,0.26803147,649.42,648.73,2.30140412]
[1749456139312,0.26803147,649.42,648.79,2.30140412]
[1749456140614,0.26803147,649.42,648.8,1.114]
[1749456141014,0.26803147,649.42,648.82,2.30140412]
[1749456141814,0.26803147,649.42,648.81,2.30140412]
[1749456143812,0.26803147,649.42,648.82,2.30140412]
[1749456144012,0.26803147,649.42,648.81,2.30140412]
[1749456144213,0.26803147,649.42,648.82,2.30140412]
[1749456144512,0.26803147,649.42,648.86,2.30140412]
[1749456144820,0.26803147,649.42,648.8,1.114]
[1749456146715,0.26803147,649.42,648.81,2.30140412]
[1749456149412,0.26803147,649.42,648.8,3.41540412]
[1749456150315,0.26803147,649.42,648.81,2.30140412]
[1749456153618,0.26803147,649.42,648.82,2.30140412]
[1749456154222,0.26803147,649.42,648.81,2.30140412]
[1749456154520,0.26803147,649.42,648.92,2.30140412]
[1749456154721,0.26803147,649.42,648.86,2.30140412]
[1749456157623,0.26803147,649.42,648.85,2.30140412]
[1749456157822,0.26803147,649.42,648.86,2.30140412]
[1749456158024,0.26803147,649.42,648.85,2.30140412]
[1749456158421,0.26803147,649.42,648.86,2.30140412]
[1749456159526,0.26803147,649.42,648.87,2.30140412]
[1749456159726,0.26803147,649.42,648.8,1.114]
[1749456159727,0.26803147,649.42,648.86,2.30140412]
[1749456160127,0.26803147,649.42,648.88,2.30140412]
[1749456162323,0.26803147,649.42,648.89,2.30140412]
[1749456162526,0.26803147,649.42,648.88,2.30140412]
[1749456162724,0.26803147,649.42,648.8,1.114]
[1749456167832,0.26803147,649.42,648.69,2.30140412]
[1749456168631,0.26803147,649.42,648.7,2.30140412]
[1749456169439,0.26803147,649.42,648.71,2.30140412]
[1749456169736,0.26803147,649.42,648.72,2.30140412]
[1749456170437,0.26803147,649.42,648.73,3.36840412]
[1749456171537,0.26803147,649.42,648.74,2.30140412]
[1749456171738,0.26803147,649.42,648.75,2.30140412]
[1749456172238,0.26803147,649.42,648.74,2.30140412]
[1749456172432,0.26803147,649.42,648.76,2.30140412]
[1749456172735,0.26803147,649.42,648.91,2.30140412]
[1749456173437,0.26803147,649.42,648.92,2.30140412]
[1749456174434,0.26803147,649.42,648.93,2.30140412]
[1749456174635,0.26803147,649.42,648.94,2.30140412]
[1749456175435,0.26803147,649.42,648.95,2.30140412]
[1749456175833,0.26803147,649.42,648.99,2.30140412]
[1749456176435,0.26803147,649.42,649.01,2.30140412]
[1749456177435,0.26803147,649.42,649.02,2.30140412]
[1749456177635,0.26803147,649.42,649.03,2.30140412]
[1749456178441,0.26803147,649.42,649.05,2.30140412]
[1749456178738,0.26803147,649.42,649.04,2.30140412]
[1749456179437,0.26803147,649.42,649.1,2.30140412]
[1749456179641,0.26803147,649.42,649.15,2.30140412]
[1749456179842,0.26803147,649.42,649.13,2.30140412]
[1749456180438,0.26803147,649.42,649.12,2.30140412]
[1749456181239,0.26803147,649.42,649.13,2.30140412]
[1749456185245,0.26803147,649.42,649.12,2.30140412]
[1749456187046,0.26803147,649.42,649.04,2.30140412]
[1749456188447,0.26803147,649.42,649.0,2.30140412]
[1749456189746,0.26803147,649.42,649.01,1.137]
[1749456198451,0.30797185,649.41,649.01,1.137]
[1749456204762,0.30797185,649.41,648.83,2.30140412]
[1749456205463,0.30797185,649.41,648.82,2.30140412]
[1749456206058,0.30797185,649.41,648.83,2.30140412]
[1749456206259,0.30797185,649.41,648.82,2.30140412]
[1749456206558,0.30797185,649.41,648.74,2.30140412]
[1749456207265,0.30797185,649.41,648.73,2.30140412]
[1749456208363,0.30797185,649.41,648.74,1.087]
[1749456212463,0.30797185,649.41,648.78,2.30140412]
[1749456213160,0.30797185,649.41,648.77,2.30140412]
[1749456216266,0.30797185,649.41,648.82,2.30140412]
[1749456217769,0.30797185,649.41,648.83,2.30140412]
[1749456218665,0.30797185,649.41,648.84,2.30140412]
[1749456219265,0.30797185,649.41,648.83,2.30140412]
[1749456221770,0.30797185,649.41,648.84,2.30140412]
[1749456222168,0.30797185,649.41,648.74,1.087]
[1749456222169,0.30797185,649.41,648.83,2.30140412]
[1749456223667,0.30797185,649.41,648.76,2.30140412]
[1749456226073,0.30797185,649.41,648.77,2.30140412]
[1749456230773,0.30797185,649.41,648.78,2.30140412]
[1749456231376,0.30797185,649.41,648.77,2.30140412]
[1749456231571,0.30797185,649.41,648.78,2.30140412]
[1749456232177,0.30797185,649.41,648.77,2.30140412]
[1749456232772,0.30797185,649.41,648.78,2.30140412]
[1749456233479,0.30797185,649.41,648.74,1.087]
[1749456233480,0.30797185,649.41,648.85,2.30140412]
[1749456233679,0.30797185,649.41,648.74,1.087]
[1749456233680,0.30797185,649.41,648.86,2.30140412]
[1749456234077,0.30797185,649.41,648.84,2.30140412]
[1749456235476,0.30797185,649.41,648.85,2.30140412]
[1749456236777,0.30797185,649.41,648.86,1.296]
[1749456237482,0.30797185,649.41,648.86,3.59740412]
[1749456238578,0.30797185,649.41,648.86,1.296]
[1749456244085,0.30797185,649.41,648.86,3.59740412]
[1749456245290,0.30797185,649.41,648.87,2.30140412]
[1749456246387,0.30797185,649.41,648.88,2.30140412]
[1749456248387,0.30797185,649.41,648.93,2.30140412]
[1749456250089,0.30797185,649.41,648.94,2.30140412]
[1749456251291,1.35147553,649.41,648.94,2.30140412]
[1749456252490,1.35147553,649.41,648.95,2.30140412]
[1749456253089,1.04350368,649.4,648.95,2.30140412]
[1749456253393,1.04350368,649.39,648.86,1.296]
[1749456253592,1.04350368,649.38,648.86,1.296]
[1749456253793,1.04350368,649.37,648.86,1.296]
[1749456254089,1.04350368,649.36,648.86,1.296]
[1749456254289,1.04350368,649.4,648.86,1.296]
[1749456254493,1.04350368,649.39,648.86,1.296]
[1749456254791,1.04350368,649.38,648.86,1.296]
[1749456254994,1.04350368,649.37,648.86,1.296]
[1749456255195,1.04350368,649.36,648.86,1.296]
[1749456255495,1.04350368,649.35,648.86,1.296]
[1749456255790,1.04350368,649.34,648.86,1.296]
[1749456256092,1.35151347,649.33,648.86,1.296]
[1749456256290,1.35151821,649.32,648.86,1.296]
[1749456256490,1.04350368,649.31,648.86,1.296]
[1749456256690,1.3515277,649.3,648.86,1.296]
[1749456256993,1.3664014,649.29,648.86,1.296]
[1749456257190,1.36640615,649.28,648.86,1.296]
[1749456257394,1.36641089,649.27,648.86,1.296]
[1749456257593,1.05837264,649.26,648.86,1.296]
[1749456257994,0.30804774,649.25,648.86,1.296]
[1749456259893,0.30804774,649.25,648.6,2.30140412]
[1749456260692,0.30804774,649.25,648.59,2.30140412]
[1749456261595,0.30804774,649.25,648.6,2.30140412]
[1749456261796,0.30804774,649.25,648.59,2.30140412]
[1749456263097,0.30804774,649.25,648.61,2.30140412]
[1749456263897,0.30804774,649.25,648.6,1.065]
[1749456265198,0.30804774,649.25,648.7,2.30140412]
[1749456266399,0.30804774,649.25,648.71,2.30140412]
[1749456267298,0.30804774,649.25,648.73,2.30140412]
[1749456269999,0.30804774,649.25,648.75,2.30140412]
[1749456272504,0.30804774,649.25,648.74,2.30140412]
[1749456273405,0.30804774,649.25,648.73,2.30140412]
[1749456273804,0.30804774,649.25,648.6,1.065]
[1749456273805,0.30804774,649.25,648.78,2.30140412]
[1749456274202,0.30804774,649.25,648.77,2.30140412]
[1749456275202,0.30804774,649.25,648.78,2.30140412]
[1749456276708,0.30804774,649.25,648.77,2.30140412]
[1749456277308,0.30804774,649.25,648.79,2.30140412]
[1749456277506,0.30804774,649.25,648.76,2.30140412]
[1749456278309,0.30804774,649.25,648.74,2.30140412]
[1749456279010,0.30804774,649.25,648.73,2.30140412]
[1749456280010,0.30804774,649.25,648.74,2.30140412]
[1749456281508,0.30804774,649.25,648.73,2.30140412]
[1749456282815,0.30804774,649.25,648.65,2.30140412]
[1749456287520,0.30804774,649.25,648.66,2.30140412]
[1749456288619,0.30804774,649.25,648.67,2.30140412]
[1749456288816,0.30804774,649.25,648.65,2.30140412]
[1749456289914,0.30804774,649.25,648.64,2.30140412]
[1749456290318,0.30804774,649.25,648.65,2.30140412]
[1749456291015,0.30804774,649.25,648.64,2.30140412]
[1749456292721,0.30804774,649.25,648.71,2.30140412]
[1749456293316,0.30804774,649.25,648.72,2.30140412]
[1749456294718,0.30804774,649.25,648.73,1.007]
[1749456295222,0.30804774,649.25,648.73,3.30840412]
[1749456297324,0.30804774,649.25,648.73,1.007]
[1749456298225,0.30804774,649.25,648.73,3.30840412]
[1749456298721,0.30804774,649.25,648.74,2.30140412]
[1749456299725,0.30804774,649.25,648.76,2.30140412]
[1749456300924,0.30804774,649.25,648.8,2.30140412]
[1749456303827,0.30804774,649.25,648.82,2.30140412]
[1749456304628,1.05467657,649.24,648.73,1.007]
[1749456304827,1.3627338,649.23,648.73,1.007]
[1749456305031,1.36273855,649.22,648.73,1.007]
[1749456305225,1.36274329,649.21,648.73,1.007]
[1749456305429,1.36274804,649.2,648.73,1.007]
[1749456305627,1.36275278,649.19,648.73,1.007]
[1749456305829,1.36275753,649.18,648.73,1.007]
[1749456306132,1.36276227,649.17,648.73,1.007]
[1749456306328,1.05467657,649.16,648.73,1.007]
[1749456306527,1.36277177,649.15,648.73,1.007]
[1749456306728,1.36277651,649.14,648.73,1.007]
[1749456306928,1.36278126,649.13,648.73,1.007]
[1749456307128,1.36278601,649.12,648.73,1.007]
[1749456307328,1.36279075,649.11,648.73,1.007]
[1749456307532,1.3627955,649.1,648.73,1.007]
[1749456307731,1.36280025,649.09,648.73,1.007]
[1749456307932,1.36280499,649.08,648.73,1.007]
[1749456308136,1.36280974,649.07,648.73,1.007]
[1749456308432,0.30813792,649.06,648.73,1.007]
[1749456318833,0.30813792,649.06,648.25,2.30140412]
[1749456319440,0.30813792,649.06,648.24,2.30140412]
[1749456320435,0.30813792,649.06,648.23,2.30140412]
[1749456321640,0.30813792,649.06,648.24,1.315]
[1749456328247,0.30813792,649.06,648.34,2.30140412]
[1749456329253,0.30813792,649.06,648.33,2.30140412]
[1749456329450,0.26827322,648.89,648.33,2.30140412]
[1749456329650,0.3082234,648.88,648.35,2.30140412]
[1749456331856,0.3082234,648.88,648.34,2.30140412]
[1749456333553,0.3082234,648.88,648.32,2.30140412]
[1749456334053,0.3082234,648.88,648.26,2.30140412]
[1749456336958,0.3082234,648.88,648.25,2.30140412]
[1749456337556,0.3082234,648.88,648.24,3.61640412]
[1749456338959,0.3082234,648.88,648.25,2.30140412]
[1749456339258,0.3082234,648.88,648.24,1.315]
[1749456341961,0.3082234,648.88,648.24,3.61640412]
[1749456342160,0.3082234,648.88,648.24,1.315]
[1749456342664,0.3082234,648.88,648.18,2.30140412]
[1749456342966,0.3082234,648.88,648.17,2.30140412]
[1749456343965,0.3082234,648.88,648.2,2.30140412]
[1749456345871,0.3082234,648.88,647.78,0.26832804]
[1749456345872,0.3082234,648.88,648.21,1.202]
[1749456349070,0.3082234,648.88,648.21,3.50340412]
[1749456350871,0.3082234,648.88,648.22,2.30140412]
[1749456351169,0.3082234,648.88,648.23,2.30140412]
[1749456351776,0.3082234,648.88,648.24,2.30140412]
[1749456351972,0.3082234,648.88,648.28,2.30140412]
[1749456352875,0.3082234,648.88,648.29,2.30140412]
[1749456353984,0.3082234,648.88,648.3,2.30140412]
[1749456354574,0.3082234,648.88,648.31,2.30140412]
[1749456355375,0.3082234,648.88,648.3,2.30140412]
[1749456355879,0.3082234,648.88,648.38,2.30140412]
[1749456356176,0.3082234,648.88,648.36,2.30140412]
[1749456356775,0.3082234,648.88,648.37,2.30140412]
[1749456357677,0.3082234,648.88,648.38,2.30140412]
[1749456359477,0.3082234,648.88,648.4,2.30140412]
[1749456359887,0.3082234,648.88,648.41,2.30140412]
[1749456360983,0.3082234,648.88,648.39,2.30140412]
[1749456361579,0.3082234,648.88,648.4,0.95]
[1749456361782,0.3082234,648.88,648.41,2.30140412]
[1749456361979,0.3082234,648.88,648.4,3.25140412]
[1749456362179,0.3082234,648.88,648.41,2.30140412]
[1749456363184,0.3082234,648.88,648.42,2.30140412]
[1749456363384,0.3082234,648.88,648.44,2.30140412]
[1749456363582,0.3082234,648.88,648.43,2.30140412]
[1749456364482,0.3082234,648.88,648.45,2.30140412]
[1749456365882,0.3082234,648.88,648.46,2.30140412]
[1749456366082,0.3082234,648.88,648.47,2.30140412]
[1749456366881,0.3082234,648.88,648.46,2.30140412]
[1749456367080,0.3082234,648.88,648.45,2.30140412]
[1749456367882,0.3082234,648.88,648.46,2.30140412]
[1749456368285,0.3082234,648.88,648.47,2.30140412]
[1749456368788,0.3082234,648.88,648.4,0.95]
[1749456368789,1.05852064,648.87,648.4,0.95]
[1749456368987,0.3082329,648.86,648.4,0.95]
[1749456369386,1.36675354,648.86,648.4,0.95]
[1749456369587,0.3082329,648.86,648.4,0.95]
[1749456372987,1.05852064,648.85,648.4,0.95]
[1749456373193,1.36676304,648.84,648.4,0.95]
[1749456373492,1.36676779,648.83,648.4,0.95]
[1749456373692,0.26827322,648.89,648.4,0.95]
[1749456373693,0.3082519,648.82,648.4,0.95]
[1749456376094,1.36677254,648.82,648.4,0.95]
[1749456376301,1.05852064,648.81,648.4,0.95]
[1749456376496,0.3082614,648.8,648.4,0.95]
[1749456376698,1.05852064,648.79,648.4,0.95]
[1749456376995,0.3082709,648.78,648.4,0.95]
[1749456377292,1.36679154,648.78,648.4,0.95]
[1749456377492,0.3082709,648.78,648.4,0.95]
[1749456386699,0.3082709,648.78,648.11,2.30140412]
[1749456386996,0.3082709,648.78,648.12,2.30140412]